Workbook

Sheet Cover Page
D1: Add company logo
N2: Version 22.3 30/11/22
B8: Add photo
N13: Notes:
N14: This template may require adjustments by individual operators to meet specific reporting requirements as defined in the site Permit(s)
B29: Annual Performance Report 2022
B31: Permit EPR/CP3535CK
B33: Javelin Park Energy Recovery Facility
B35: other name of facility (if applicable)
B37: Urbaser Environmental Ltd
B39: Year: | C39: 2022
B41: Address: | C41: Javelin Park, Haresfield, Gloucestershire, GL2 7NQ
B43: Tel: | C43: 01452 379885
B45: Email: | C45: info@ubbgloucestershire.co.uk
B47: Prepared by: | C47: Jacob Towl | F47: Position: | G47: Environmental Technician
B49: Approved by: | C49: Gary Relf | F49: Position: | G49: QHSE Manager
B51: Version: | C51: 1
B53: Issue Date: | C53: 2023-01-27

Sheet Contents
A1: =+'Cover Page'!$B$29 -> Annual Performance Report 2022 | E1: =+'Cover Page'!$B$33 -> Javelin Park Energy Recovery Facility
A3: Contents | K3: Notes:
A4: Section | B4: Subject | H4: Page | K4: Section references and Page nos. to be inserted
B5: Facility Information | H5: 3 | K5: Sections and Subjects may require adjustment by individual operators to meet specific reporting requirements as defined in the sites Permit(s)
B6: Operational Data | H6: 4
B7: Operational Summary | H7: 5
B8: Performance Form 1 | H8: 6
B9: Energy Form 1 | H9: 7
B10: Permit Compliance | H10: 8
B11: Improvements | H11: 10
B12: Public Liasion | H12: 11
B13: Carbon dioxide and nitrous oxide emissions | H13: 12
B14: Residue Quality | H14: 13
B15: Emissions to Water | H15: 14
B16: Emissions to Air (periodically monitored) | H16: 15
B17: Emissions to Air (continuously monitored) | H17: 16
B18: Hydrogen Chloride emissions | H18: 17
B19: Sulphur Dioxdie emsissions | H19: 18
B20: Oxides of Notrigen emissions | H20: 19
B21: Total Organic Carbon emissions | H21: 20
B22: Particulate Matter emissions | H22: 21
B23: Carbon Monoxide emissions | H23: 22
B24: Ammonia emissions | H24: 23
A27: Version Control
A28: Section | B28: Information | H28: Date
A29: V1 | B29: Prepared by Jacob Towl, approved by Gary Relf | H29: 2023-01-27
A35: Distribution
A36: Copy | B36: Name, Role | H36: No.
A45: This report is required under the Industrial Emissions Directive’s Article 55(2) requirements on reporting and public information on waste incineration plants and co-incineration plants, which require the operator to produce an annual report on the functioning and monitoring of the plant and make it available to the public.

Sheet Facility Info
A1: =+'Cover Page'!$B$29 -> Annual Performance Report 2022 | E1: =+'Cover Page'!$B$33 -> Javelin Park Energy Recovery Facility
A3: Plant Description and Design | K3: Notes:
A5: The installation is designed to recover energy from residual municipal waste, and from commercial and industrial waste of a similar nature to residual municipal waste, by incineration. Energy will be recovered from the installation in the form of electricity, which will be exported to the National Grid. The installation is located on a 4.8 hectare site at grid reference 380040,210430, a short distance south of Junction 12 of the M5 motorway in Gloucestershire. The village of Haresfield is located approximately 1.0 km to the east of the site and the Quedgeley Business Park is located approximately 1.5 km to the north of the site on either side of the motorway. The installation will process up to 190,000 tonnes of waste per year (23.75 tonnes per hour) in a single incineration line. The incinerator is of a mass burn moving grate design. Waste will be delivered to the facility by road in covered vehicles or containers and tipped within the main building in the waste reception hall directly into the waste bunker. The waste is stored and mixed in the waste bunker prior to being burnt in the moving grate incinerator plant. | K5: Include summary of plant design, design capacity, no. of combustion lines, electrical and heat capacity and any other general information that descibes the facility, its location and purpose
A20: Summary of Operational Processes and Procedures
A22: Heat from the combustion process is used to generate high pressure steam in a multi stage boiler plant which is integral to the combustion process. The high pressure steam is fed to a steam turbine to generate electricity. The ERF has a total capacity of approximately 65.3 MW (thermal input) and is capable of generating up to 17.4 MWe of electrical power, of which up to 14.5 MW will be exported to the National Grid. Provision has been made in the design for the plant to be capable of supplying heat in the form of steam or hot water, once a viable heat user becomes available to take the heat as an output. The furnace design ensures that a temperature of at least 850°C for a period of at least two seconds is achieved in the combustion chamber. To ensure that the temperature does not fall below 850°C, auxiliary burners firing low sulphur fuel oil are automatically triggered by online process monitoring equipment. The auxiliary burners are also used to achieve and maintain the minimum furnace temperature during start up and shutdown periods. Combustion gases are cleaned before they are released to atmosphere. There are four components to the flue gas cleaning and abatement technique: • Selective Non-Catalytic Reduction (SNCR), involving the injection of ammonia into the combustion chamber, provides for the abatement of nitrogen oxides; • hydrated lime reagent, injected to neutralise acid gas compounds; • activated carbon, injected to absorb mercury, dioxins and furans; and • bag filtration to remove fine particulates. The residues which are collected on the bag filters are directed to a residues silo. Part of the residues are recycled to the reagent injection points to ensure maximum usage of the lime content. Cleaned flue gases exiting the abatement system of the incinerator line are discharged through a 70 m tall stack. Exhaust flue gases are continuously monitored for particulate matter, oxides of nitrogen, sulphur dioxide, carbon monoxide, total organic carbon, hydrogen chloride and ammonia Monitoring for heavy metals, dioxins, nitrous oxide and hydrogen fluoride is carried out periodically. Under normal circumstances there are no liquid effluent emissions from the installation. Although some rainwater is harvested for use in the process, the site has a net consumption of water. Waste water arisings from boiler blowdown and water treatment backwash are recycled to the Incinerator Bottom Ash (IBA) quench system. Sludge from the IBA waste water pit will be periodically tankered off-site for appropriate treatment. | K22: Include summary of key processes and procedures such as (but not limited to); waste reception, control rooms, grate, bed and bolier, energy & heat generation, cooling systems, residue management, emission controls, health and safety systems, maintenance

Sheet Operational Data
A1: =+'Cover Page'!$B$29 -> Annual Performance Report 2022 | E1: =+'Cover Page'!$B$33 -> Javelin Park Energy Recovery Facility
A3: Operational Data | K3: Notes:
A4: Plant Size | B4: 190000 | D4: tonnes pa | E4: 65 | F4: MWth | G4: 17 | H4: MWe | K4: * - RDF to include SRF
A5: No. of combustion lines | B5: 1 | D5: No. of Turbines: | F5: 1 | K5: ** - CHP plants only
K6: 2020 updates include; heat in MWh, water in Litres, NCV in MJ/kg
A7: Waste types received | B7: Unit | C7: Q1 | D7: Q2 | E7: Q3 | F7: Q4 | G7: Year Total | H7: %
A8: Household / Local Authority | B8: tonnes | C8: 32057.99 | D8: 32195.72 | E8: 31435.2 | F8: 31381.96 | G8: =SUM(C8:F8) -> 127070.87 | H8: =IF(G8>0,G8/$G$18,"-") -> 0.6725987313 | K8: Availabiity Definition: 'the availability of a line is to be calculated by the number of hours the line reported Continuously Monitored emission levels to the Regulator through the calendar year divided by the total number of hours in that year. The overall plant availability is calculated as the Mean of all lines in the plant. For clarity this includes periods of Other Than Normal Operating Conditions (OTNOC) and abnormal operation.' Rationale: The primary function of an Energy from Waste facility is the disposal of waste. It follows therefore that the availability of a plant is determined by the period of time a facility spends undertaking this activity.
A9: Commercial & Industrial | C9: 14426.58 | D9: 18085.48 | E9: 10411.54 | F9: 18930.76 | G9: =SUM(C9:F9) -> 61854.36 | H9: 0.3274012687
A10: Hazardous | G10: 0 | H10: -
A11: Clinical | G11: 0 | H11: -
A12: Waste wood (biomass) | G12: 0 | H12: -
A13: Refuse Derived Fuel * - H'hold/LA | G13: =SUM(C13:F13) -> 0 | H13: -
A14: Refuse Derived Fuel * - C&I | G14: 0 | H14: -
A15: Other [Please specify] | G15: 0 | H15: -
A16: Other [Please specify]
A17: Other [Please specify]
A18: Total waste received | C18: =SUM(C8:C17) -> 46484.57 | D18: =SUM(D8:D17) -> 50281.2 | E18: =SUM(E8:E17) -> 41846.74 | F18: =SUM(F8:F17) -> 50312.72 | G18: =SUM(G8:G17) -> 188925.23 | H18: 1
A19: Rejected Waste | G19: =SUM(C19:F19) -> 0 | H19: =IF(G19>0,G19/$G$18,"-") -> -
A20: Unprocessed waste transferred out | C20: 67.88 | D20: 62.4 | E20: 52.52 | F20: 32.12 | G20: =SUM(C20:F20) -> 214.92 | H20: =IF(G20>0,G20/$G$18,"-") -> 0.001137592899
A21: Total waste combusted | C21: =C18-SUM(C19:C20) -> 46416.69 | D21: =D18-SUM(D19:D20) -> 50218.8 | E21: =E18-SUM(E19:E20) -> 41794.22 | F21: =F18-SUM(F19:F20) -> 50280.6 | G21: =SUM(C21:F21) -> 188710.31 | H21: =IF(G21>0,G21/$G$18,"-") -> 0.9988624071
A23: Energy Useage / Export | B23: Unit | C23: Q1 | D23: Q2 | E23: Q3 | F23: Q4 | G23: Year Total | H23: KWh/te
A24: Power Generated | B24: MWh | C24: 37357.5 | D24: 39398.62 | E24: 32256.34 | F24: 37324.13 | G24: =SUM(C24:F24) -> 146336.59 | H24: =IF(G24>0,G24*1000/$G$21,"-") -> 775.4562536
A25: Power Exported | C25: 33562.4 | D25: 35230.2 | E25: 28498.31 | F25: 33162.84 | G25: =SUM(C25:F25) -> 130453.75 | H25: =IF(G25>0,G25*1000/$G$21,"-") -> 691.2910588
A26: Power Used on site | C26: 3577.9 | D26: 4003.478 | E26: 3938.456 | F26: 4095.344 | G26: =SUM(C26:F26) -> 15615.178 | H26: =IF(G26>0,G26*1000/$G$21,"-") -> 82.74681972
A27: Power Imported | C27: 100.7 | D27: 42 | E27: 302 | F27: 47.1 | G27: 491.8 | H27: =IF(G27>0,G27*1000/$G$21,"-") -> 2.606110922
A28: Parasitic Load | B28: % | C28: =IF(C24>0,1-C25/(C24+C27),"-") -> 0.1040039297 | D28: =IF(D24>0,1-D25/(D24+D27),"-") -> 0.1067533928 | E28: =IF(E24>0,1-E25/(E24+E27),"-") -> 0.1247001536 | F28: =IF(F24>0,1-F25/(F24+F27),"-") -> 0.1126104225 | G28: =IF(G24>0,1-G25/(G24+G27),"-") -> 0.1115223016
A29: Thermal Energy Produced ** | B29: MWh | G29: =SUM(C29:F29) -> 0 | H29: =IF(G29>0,G29*1000/$G$21,"-") -> -
A30: Thermal Energy Exported ** | G30: 0 | H30: =IF(G30>0,G30*1000/$G$21,"-") -> -
A31: R1 value (if applicable) | H31: 0.79
A33: Waste Disposal & Recovery | B33: Unit | C33: Q1 | D33: Q2 | E33: Q3 | F33: Q4 | G33: Year Total | H33: % inputs
A34: APC Residues - produced | B34: tonnes | C34: 1127.03 | D34: 1256.88 | E34: 930.618 | F34: 1208.11 | G34: =SUM(C34:F34) -> 4522.638 | H34: =IF(G34>0,G34/$G$21,"-") -> 0.02396603556
A35: IBA - produced | C35: 11194.5 | D35: 10491.2 | E35: 11381.78 | F35: 9346.36 | G35: 42413.84 | H35: =IF(G35>0,G35/$G$21,"-") -> 0.2247563474
A36: Metals recycling | C36: 556.24 | D36: 137.46 | E36: 91.46 | F36: 1491.06 | G36: =SUM(C36:F36) -> 2276.22 | H36: 0.01206198008
A37: Process Water | C37: 842.36 | D37: 1134.72 | E37: 1267.7 | F37: 2380.7 | G37: =SUM(C37:F37) -> 5625.48 | H37: 0.02981013597
A38: Other | C38: 0 | D38: 0 | E38: 0 | F38: 0 | G38: 0 | H38: -
A39: Other | C39: 0 | D39: 0 | E39: 0 | F39: 0 | G39: 0 | H39: -
A41: Raw Material Usage | B41: Unit | C41: Q1 | D41: Q2 | E41: Q3 | F41: Q4 | G41: Year Total | H41: kg or Ltr /te
A42: Mains Water | B42: ltrs | C42: 5261336 | D42: 5917712 | E42: 5421940 | F42: 7894750 | G42: =SUM(C42:F42) -> 24495738 | H42: =IF(G42>0,G42/$G$21,"-") -> 129.8060397
A43: Other Water | B43: ltrs | G43: 0 | H43: =IF(G43>0,G43/$G$21,"-") -> -
A44: Ammonia | B44: kgs | C44: 98334.79 | D44: 103882.51 | E44: 81349.07 | F44: 82302.79 | G44: 365869.16 | H44: 1.93878734
A45: Urea | B45: kgs | G45: =SUM(C45:F45) -> 0 | H45: -
A46: Activated Carbon | B46: kgs | C46: 11237.01 | D46: 12528.95 | E46: 10305.51 | F46: 12462.02 | G46: 46533.49 | H46: 0.2465868982
A47: Lime / hydrated lime | B47: kgs | C47: 541280 | D47: 625439.8 | E47: 477290 | F47: 624350 | G47: 2268359.8 | H47: 12.02032788
A48: Fuel oil | B48: ltrs | C48: 40594.9 | D48: 42726.86 | E48: 56842 | F48: 24407.7 | G48: 164571.46 | H48: 0.8720851553
A49: Gas | B49: cf | C49: 0 | D49: 0 | E49: 0 | F49: 0 | G49: 0
A50: Other | C50: 0 | D50: 0 | E50: 0 | F50: 0 | G50: 0
A52: Summary | B52: Line/Unit | C52: Q1 | D52: Q2 | E52: Q3 | F52: Q4 | G52: Year Total | J52: Hrs in year
A53: Availability of waste combustion by line, hrs | B53: =+B5 -> 1 | C53: 2041.9 | D53: 2159 | E53: 1836 | F53: 2185.65 | G53: =SUM(C53:F53) -> 8222.55 | H53: 0.9387 | J53: 8760
B54: 2 | G54: 0 | H54: x %
B55: 3 | G55: 0 | H55: x %
B56: 4 | G56: 0 | H56: x %
B57: 5 | G57: =SUM(C57:F57) -> 0 | H57: x %
A58: Overall Availability, mean avg. of all lines, hrs | G58: 8223 | H58: 0.9387
A59: Hours of turbine operations, hrs | B59: 1 | C59: 2042.59 | D59: 2149.1 | E59: 1792 | F59: 2173.5 | G59: 8157.19 | H59: 0.9311
A60: Hours of turbine operations, hrs | B60: 2 | G60: 0 | H60: x %
A61: Hours of heat / steam export | G61: 0 | H61: =IF(B61>0,G60/J53,"n/a") -> n/a
A62: Net Calorific Value of waste | B62: MJ/kg | H62: -
A63: Abnormal Events | B63: qty. | C63: 0 | D63: 0 | E63: 0 | F63: 0 | G63: 0 | H63: =IF(G63>0,"yes","no") -> no
A64: Abnormal operation | B64: hours | C64: 0 | D64: 0 | E64: 0 | F64: 0 | G64: 0 | H64: =+(G64)/J53 -> 0
A65: Permit Breaches | B65: qty. | C65: 0 | D65: 5 | E65: 8 | F65: 0 | G65: 13 | H65: =IF(G65>0,"yes","no") -> yes

Sheet Operational Summary
A1: =+'Cover Page'!$B$29 -> Annual Performance Report 2022 | E1: =+'Cover Page'!$B$33 -> Javelin Park Energy Recovery Facility
A3: Summary of Plant Operations and Maintenance during the reporting year | K3: Notes:
A5: The boiler was in operation for 8,223 hours throughout 2022, with the turbine available for 8,157 hours both an improvement on the previous year. Downtime included the planned annual maintenance shutdown in which a number of internal inspections and repairs took place. There were also a few periods of unplanned shutdowns to attend to some minor operational disruptions. | K5: Include summary of key operational and/or mainteanance activity undertaken in the year, such as any major component upgrades and/or replacements
A29: Summary of Residue Handling for the reporting year
A31: The facility has sent the majority of its IBA for processing and recycling in Nottinghamshire, with some later in the year heading to Derbyshire and Peterborough. APCr has been sent to Peterborough. | K31: Include in here a summary of residue handling regimes and destinations

Sheet Perf. Form 1
A1: =+'Cover Page'!C39 -> 2022 | B1: Annual Reporting Performance Form 1
A3: =+'Cover Page'!B31 -> Permit EPR/CP3535CK | F3: Operator: | G3: =+'Cover Page'!B37:I37 -> 0
A4: Facility: | B4: =+'Cover Page'!B33:I33 -> Javelin Park Energy Recovery Facility | F4: Form: | G4: Performance 1
A6: Reporting Period from: | D6: 2022-01-01 | F6: to: | G6: 2022-12-31
A8: =+A1 -> 2022 | B8: Annual Reporting of Waste Disposal and Recovery
A9: Waste Description | C9: Disposal Route(s) | E9: Disposal Tonnes | G9: Recovery Tonnes | I9: % / tonne of waste incinerated
A10: 1) Hazardous Wastes
A11: APC Residues | C11: East Northamptonshire | E11: 4514.04 | I11: =IF((E11+G11)>0,(E11+G11)/'Operational Data'!$G$21, "-") -> 0.02392047366
A12: IBA | I12: =IF((E12+G12)>0,(E12+G12)/'Operational Data'!$G$21, "-") -> -
I13: =IF((E13+G13)>0,(E13+G13)/'Operational Data'!$G$21, "-") -> -
I14: =IF((E14+G14)>0,(E14+G14)/'Operational Data'!$G$21, "-") -> -
A15: Total Hazardous Waste | E15: =SUM(E11:F14) -> 4514.04 | G15: =SUM(G11:H14) -> 0 | I15: =IF((E15+G15)>0,(E15+G15)/'Operational Data'!$G$21, "-") -> 0.02392047366
A17: 2) Non-Hazardous Wastes
A18: IBA | C18: Nottinghamshire, Ilkeston, Peterborough, Avonmouth | G18: 45240.58 | I18: =IF((E18+G18)>0,(E18+G18)/'Operational Data'!$G$21, "-") -> 0.2397356032
A19: Ferrous Metal | C19: Doncaster, Newport, Blaenau Gwent | G19: 929.96 | I19: =IF((E19+G19)>0,(E19+G19)/'Operational Data'!$G$21, "-") -> 0.004927976643
A20: Process Water | C20: Gloucester | G20: 5625.48 | I20: =IF((E20+G20)>0,(E20+G20)/'Operational Data'!$G$21, "-") -> 0.02981013597
A21: Non-ferrous | C21: Wolverhampton | G21: 19.92 | I21: =IF((E21+G21)>0,(E21+G21)/'Operational Data'!$G$21, "-") -> 0.0001055586205
I22: =IF((E22+G22)>0,(E22+G22)/'Operational Data'!$G$21, "-") -> -
A23: Total Non-Hazardous Waste | E23: =SUM(E18:F22) -> 0 | G23: =SUM(G18:H22) -> 51815.94 | I23: =IF((E23+G23)>0,(E23+G23)/'Operational Data'!$G$21, "-") -> 0.2745792744
A24: TOTAL WASTE | E24: =+E23+E15 -> 4514.04 | G24: =+G23+G15 -> 51815.94 | I24: =IF((E24+G24)>0,(E24+G24)/'Operational Data'!$G$21, "-") -> 0.2984997481
A26: Operator’s comments :
A31: =+A1 -> 2022 | B31: Annual Reporting of Water and Other Raw Material Usage
A32: Raw Material | E32: Usage | G32: Unit | H32: Specific Useage | J32: Unit
A33: Mains Water | E33: =+'Operational Data'!G42 -> 24495738 | G33: ltrs | H33: =IF(E33>0,E33/'Operational Data'!$G$21,"-") -> 129.8060397 | J33: ltrs/te
A34: Total Water | E34: =+'Operational Data'!G43+'Operational Data'!G42 -> 24495738 | G34: ltrs | H34: =IF(E34>0,E34/'Operational Data'!$G$21,"-") -> 129.8060397 | J34: ltrs/te
A35: Urea / Ammonia | E35: =+'Operational Data'!G44 -> 365869.16 | G35: kg | H35: =IF(E35>0,E35/'Operational Data'!$G$21,"-") -> 1.93878734 | J35: kg/te
A36: Activated Carbon | E36: =+'Operational Data'!G46 -> 46533.49 | G36: kg | H36: =IF(E36>0,E36/'Operational Data'!$G$21,"-") -> 0.2465868982 | J36: kg/te
A37: Lime / hydrated lime / Sodium Bicarb. | E37: =+'Operational Data'!G47 -> 2268359.8 | G37: kg | H37: =IF(E37>0,E37/'Operational Data'!$G$21,"-") -> 12.02032788 | J37: kg/te
A39: Operator’s comments :
A43: =+A31 -> 2022 | B43: Annual Reporting of other performance indicators
A44: Parameter | C44: Results by Line
C45: A1 | D45: A2 | E45: A3 | F45: A4 | G45: A5 | I45: Turbine 1 | J45: Turbine 2
A46: Operating hours for the year, hours | C46: 8223 | I46: 8157
A47: Number of periods of abnormal operation, qty. | C47: 0
A48: Cumulative hours of abnormal operation for this year, hours | C48: 0
A50: Operator’s comments :
A54: Signed: | G54: Date:

Sheet Energy Form 1
A1: =+'Cover Page'!C39 -> 2022 | B1: Annual Reporting of Energy Usage/Export
A3: =+'Cover Page'!B31 -> Permit EPR/CP3535CK | F3: Operator: | G3: =+'Cover Page'!B37:I37 -> 0
A5: Facility: | B5: =+'Cover Page'!B33:I33 -> Javelin Park Energy Recovery Facility | F5: Form: | G5: Energy 1
A7: Reporting Period from: | D7: =+'Perf. Form 1'!D6:E6 -> 2022-01-01 | F7: to: | G7: =+'Perf. Form 1'!G6:H6 -> 2022-12-31
A9: Energy Source | D9: Energy Usage | F9: Unit | G9: Specific Useage (KWh/tonne incinerated
A10: Electricity Produced | D10: =+'Operational Data'!G24 -> 146336.59 | F10: MWh | G10: =+'Operational Data'!H24 -> 775.4562536
A11: Electricity Imported | D11: =+'Operational Data'!G27 -> 491.8 | F11: MWh | G11: =+'Operational Data'!H27 -> 2.606110922
A12: Electricity Exported | D12: =+'Operational Data'!G25 -> 130453.75 | F12: MWh | G12: =+'Operational Data'!H25 -> 691.2910588
A13: Gas Oil | D13: 139.89 | F13: tonnes | G13: =D13/'Operational Data'!G18 -> 0.0007404516591
A14: Steam/hot water exported | D14: =+'Operational Data'!G30 -> 0 | F14: GWh | G14: =+'Operational Data'!H30 -> -
A18: Operator’s comments :
A29: Signed: | G29: Date:

Sheet Permit Compliance
A1: =+'Cover Page'!$B$29 -> Annual Performance Report 2022 | E1: =+'Cover Page'!$B$33 -> Javelin Park Energy Recovery Facility
A3: Summary of Permit Compliance
A5: Compliance with permit limits for continuously monitored pollutants
A7: The plant met its emission limits as shown in the table below:
A8: Substance | C8: Percentage time compliant during operation | L8: Notes:
C9: Half-hourly limit | F9: Daily limit | L9: Report to 2 decimal places, i.e. xx.xx% Please provide a brief summary of each notification or non-compliance in the table (rather than just referring to notifications that were sent to the Regulator).
A10: Particulates | C10: 1 | F10: 1
A11: Oxides of nitrogen | C11: 1 | F11: 1
A12: Sulphur dioxide | C12: 1 | F12: 1
A13: Carbon monoxide | C13: 0.9993 | F13: 1
A14: Total organic carbon | C14: 1 | F14: 1
A15: Hydrogen chloride | C15: 1 | F15: 1
A16: Hydrogen fluoride | C16: 1 | F16: 1
A19: Summary of any notifications or non-compliances under the permit
A20: Date | B20: Summary of notification or non-compliance [including Line/Reference] | E20: Reason | H20: Measures taken to prevent reoccurrence
A21: 2022-05-12 | B21: CO HH ELV breach | E21: Explosion on the grate caused drop in oxygen and spike in CO in the flue gas | H21: Control system reacted immediately to recover CO levels to normal
A22: 2022-05-13 | B22: Heavy metals ELV breach | E22: During periodic monitoring heavy metals were found to be unusually above the ELV. | H22: Initial review of facility status at the time of measurement has been conducted – facility was in normal operation including activated carbon dosing. A review of vehicles and suppliers will also take place to identify if a particular type of vehicle or new supplier was introduced around the time of the breach. Re-test following this result showed the facility to be oeprating below the limits.
A23: 2022-06-06 | B23: CO HH ELV breach | E23: Explosion on the grate caused drop in oxygen and spike in CO in the flue gas | H23: Control system reacted immediately to recover CO levels to normal
A24: 2022-07-15 | B24: CO HH ELV breach | E24: Explosion on the grate caused drop in oxygen and spike in CO in the flue gas | H24: Control system reacted immediately to recover CO levels to normal
A25: 2022-07-22 | B25: CO HH ELV breach | E25: Explosion on the grate caused drop in oxygen and spike in CO in the flue gas | H25: Control system reacted immediately to recover CO levels to normal
A26: 2022-08-02 | B26: CO HH ELV breach | E26: Explosion on the grate caused drop in oxygen and spike in CO in the flue gas | H26: Will use the August annual maintenance shutdown to try and identify suppliers/source of waste causing the explosions. Will limit the source of waste to one supplier at a time and review the CO data on a weekly basis to identify any changes in frequency of CO spikes.
A27: 2022-08-02 | B27: CO HH ELV breach | E27: Explosion on the grate caused drop in oxygen and spike in CO in the flue gas | H27: Will use the August annual maintenance shutdown to try and identify suppliers/source of waste causing the explosions. Will limit the source of waste to one supplier at a time and review the CO data on a weekly basis to identify any changes in frequency of CO spikes.
A28: 2022-08-12 | B28: CO HH ELV breach | E28: Explosion on the grate caused drop in oxygen and spike in CO in the flue gas | H28: Will use the August annual maintenance shutdown to try and identify suppliers/source of waste causing the explosions. Will limit the source of waste to one supplier at a time and review the CO data on a weekly basis to identify any changes in frequency of CO spikes.
A29: 2022-08-12 | B29: CO HH ELV breach | E29: Explosion on the grate caused drop in oxygen and spike in CO in the flue gas | H29: Will use the August annual maintenance shutdown to try and identify suppliers/source of waste causing the explosions. Will limit the source of waste to one supplier at a time and review the CO data on a weekly basis to identify any changes in frequency of CO spikes.
A30: 2022-09-03 | B30: CO HH ELV breach | E30: Explosion on the grate caused drop in oxygen and spike in CO in the flue gas | H30: Will use the August annual maintenance shutdown to try and identify suppliers/source of waste causing the explosions. Will limit the source of waste to one supplier at a time and review the CO data on a weekly basis to identify any changes in frequency of CO spikes.
A31: 2022-09-04 | B31: CO HH ELV breach | E31: Explosion on the grate caused drop in oxygen and spike in CO in the flue gas | H31: Will use the August annual maintenance shutdown to try and identify suppliers/source of waste causing the explosions. Will limit the source of waste to one supplier at a time and review the CO data on a weekly basis to identify any changes in frequency of CO spikes.
A32: 2022-09-18 | B32: CO HH ELV breach | E32: Explosion on the grate caused drop in oxygen and spike in CO in the flue gas | H32: Will use the August annual maintenance shutdown to try and identify suppliers/source of waste causing the explosions. Will limit the source of waste to one supplier at a time and review the CO data on a weekly basis to identify any changes in frequency of CO spikes.
A33: 2022-09-21 | B33: CO HH ELV breach | E33: Explosion on the grate caused drop in oxygen and spike in CO in the flue gas | H33: Will use the August annual maintenance shutdown to try and identify suppliers/source of waste causing the explosions. Will limit the source of waste to one supplier at a time and review the CO data on a weekly basis to identify any changes in frequency of CO spikes.
A35: Summary of any complaints received and actions to taken to resolve them.
A36: Date | B36: Summary of complaint [including Line/Reference] | E36: Reason * | H36: Measures taken to prevent reoccurrence
A37: 2022-01-18 | B37: Chemical smell noticed at member of public residency | E37: Odour - unsubstantiated by operator after performing on site and external odour checks, along with reviewing wind direction. | H37: Continue with daily noise and odour checks
A38: 2022-08-21 | B38: Waste smell at nearby property | E38: Odour - during outage, odour suppression in place and operational and all doors were closed | H38: All possible measures to limit odour secretion into surrounding environment in place
A39: 2022-08-24 | B39: Burning smells in nearby village | E39: Odour - unsubstantiated by operator after performing on site and external odour checks, along with reviewing wind direction. | H39: Continue with daily noise and odour checks
A40: 2022-09-09 | B40: Neighbour to facility could hear alarm for 2 hours | E40: Noise - fire pump alarm sounding locally | H40: This local alarm sounding will now be indicated in control room also
E42: * including whether substantiated by the operator or the EA

Sheet Improvements
A1: =+'Cover Page'!$B$29 -> Annual Performance Report 2022 | E1: =+'Cover Page'!$B$33 -> Javelin Park Energy Recovery Facility
A3: Summary of Plant Improvements
A5: Summary of any efficiency improvements that have been completed within the year.
A6: N/A
A16: Summary of any permit improvement conditions that have been completed within the year and the resulting environmental benefits.
A17: N/A
A27: Summary of any changes to the plant or operating techniques which required a variation to the permit and a summary of the resulting environmental impact.
A28: N/A
A38: Summary of any other improvements made to the plant or planned to be made and a summary of the resulting environmental benefits. | N38: Please
A39: Changed from red diesel to Ultra 35, a more environmentlaly beneficial fuel to use for the burners and EDG.

Sheet Public Liasion
A1: =+'Cover Page'!$B$29 -> Annual Performance Report 2022 | E1: =+'Cover Page'!$B$33 -> Javelin Park Energy Recovery Facility
A3: Details of Public & Stakeholder Liaision
A5: Summary of events held during the reporting year.
A6: Date | C6: Description
A7: 2022-03-26 | C7: Open Day
A9: 2022-10-06 | C9: CLG Meeting on site
A11: 2022-11-12 | C11: Open Day
A16: List of events planned for next year
A17: Date | C17: Description
A18: 2022-03-18 | C18: Spring Open Day
A20: TBC | C20: Autumn Open Day
A22: TBC | C22: CLG meeting on site - meeting held quarterly
A29: If you wish to be involved in the public liasion programme, please contact: info@ubbgloucestershire.co.uk

Sheet CO2 N2O
A1: =+'Cover Page'!$B$29 -> Annual Performance Report 2022 | C1: =+'Cover Page'!$B$33 -> Javelin Park Energy Recovery Facility
A3: Carbon dioxide emissions and biogenic content of waste inputs | E3: Notes:
A5: Carbon dioxide emissions (all types of plant)
A6: Annual mass of carbon dioxide released | B6: x tonnes | C6: 179001.43
A7: Annual mass of carbon dioxide released per tonne of waste burned | B7: x tonnes | C7: 0.942
A8: Annual mass of carbon dioxide released per MWh of energy exported | B8: x tonnes | C8: 1.37
A9: Description of how annual carbon dioxide mass emission has been calculated | B9: Use of mass reporting tool on CEMS data software to gain mass emissions from CO2%. Average taken between the months since calibration and multiplied to gain annual emissions. | E9: Note 1: Where available, data from CO2 CEMS should be used. Otherwise, where no CEMS data is available, a suitable emissions factor should be used based on the tonnage of waste burned e.g.0.992 tCO2/t waste as per Tolvik report 2021, or other justified emissions factor - refer to embedded Environment Agency guidance note above or updated version for suitable descriptive text.
A11: Nitrous oxide emissions (only plants which use ammonia or urea to abate NOx emissions)
A12: Annual mass emissions of nitrous oxide | B12: x tonnes | C12: 0
A13: Description of how annual nitrous oxide mass emission has been calculated | B13: Use of mass reporting tool on CEMS data software to gain mass emissions from N20 mg/m3. Average taken between the months since calibration and multiplied to gain annual emissions. | E13: Note 2: Where available, data from N2O CEMS should be used, or if no CEMS data is available, from periodic monitoring. Otherwise, a suitable emissions factor should be used based on the tonnage of waste burned e.g. 0.0981 kgN20/t waste as per 2021 Pollution Inventory data for plants with urea-based SNCR - refer to embedded Environment Agency guidance note above or updated version for suitable descriptive text.
A14: Total annual carbon dioxide and nitrous oxide emissions as carbon dioxide equivalent (whereby 1 t nitrous oxide is equivalent to 298 t carbon dioxide) | B14: x tonnes CO2e | C14: 179001.43
A16: Biogenic fraction of the waste and biogenic CO2 emissions (only plants burning residual municipal waste, refuse derived fuel or solid recovered fuel)
A17: Yearly average biogenic percentage of the waste by net calorific value (NCV) | B17: x % | C17: 49.71
A18: Description of how biogenic NCV percentage has been calculated or estimated | B18: Waste sampling from June 2022 | E18: Note 3: Where available, data from waste sampling should be used; otherwise, an estimated figure with justification can be used, or a figure assumed on the basis of a national average e.g. 2017 WRAP data for residual waste of 51.8% biogenic energy content - refer to embedded Environment Agency guidance note above or updated version for suitable descriptive text, quoting standards where relevant.
A19: Percentage of total carbon dioxide emissions arising from biogenic waste | B19: x % | C19: 49.71
A20: Description of how percentage biogenic carbon dioxide emissions have been calculated | B20: Estimated biogenic fraction by net calorific value can be assumed to be the same as the biogenic CO2 fraction of the total CO2 emissions from the plant. | E20: Note 4: Examples include direct measurement via C14 method or BIOMA software - refer to embedded Environment Agency guidance note above or updated version for suitable descriptive text, quoting standards where relevant. Otherwise, as an approximation (and in lieu of any more accurate metrics which may be developed in future), the measured or estimated biogenic fraction by net calorific value can be assumed to be the same as the biogenic CO2 fraction of the total CO2 emissions from the plant.
A22: Comments:

Sheet Residue Quality
A1: =+'Cover Page'!$B$29 -> Annual Performance Report 2022 | E1: =+'Cover Page'!$B$33 -> Javelin Park Energy Recovery Facility
A3: Residue Quality Monitoring Requirements
A5: Summary of monitoring undertaken and compliance
A6: Twice monthly IBA core hazard assessment performed following the ESA Protocol for IBA sampling, with an additional yearly full 15 hazardous property assessment. Quarterly IBA and APCr compliance testing also performed
A8: All samples remained non-hazardous and compliant, and the facility will continue this testing regime into the future.
A13: Commentary on any specific events
A14: Date & Event | C14: Description
A27: Residue Quality Monitoring Results
A28: Parameter (unit) | C28: Limit | D28: Normal Operation
D29: Bottom ash | F29: APC Residues
A30: Loss on Ignition (average %) | C30: <5% | D30: 1.75
A31: Total Organic Carbon (average %) | C31: <3% | D31: 0.55
A32: No. of Assessments Undertaken | C32: --- | D32: 24 | F32: 4
A33: No. of Hazardous Results | C33: --- | D33: 0
A35: Comments :
A36: All IBA monitoring results were below the limits for LOI and TOC as stipulated in the permit, and no hazardous results were identified during the twice monthly samples

Sheet Water
A1: =+'Cover Page'!$B$29 -> Annual Performance Report 2022 | E1: =+'Cover Page'!$B$33 -> Javelin Park Energy Recovery Facility
A3: Emissions to Water
A5: Summary of monitoring undertaken and compliance
A6: N/A
A13: Commentary on any specific events
A14: Date & Event | C14: Description
A22: Emissions to Water / Sewer
A23: Parameter | D23: Monitoring Frequency | F23: Limit | G23: Target | H23: Max. | I23: Average

Sheet Air (periodic)
A1: =+'Cover Page'!$B$29 -> Annual Performance Report 2022 | E1: =+'Cover Page'!$B$33 -> Javelin Park Energy Recovery Facility
A3: Emissions to Air (periodically monitored)
A5: Summary of monitoring undertaken, standards used and compliance | M5: Notes:
A6: Bi-annual periodic testing was undertaken as stipulated in the environmental permit. Heavy metals were found to be above the ELV during the first round of testing - a subsequent retest was taken and showed the facility to be comfortably below the ELV | M6: Template may require adjustment for any bespoke monitoring requirements of permit.
A9: Results of emissions to air that are periodically monitored
A10: Substance | C10: Ref. Period | D10: Emission Limit Value | F10: Average | M10: User to add additional tables as necessary, depending on whether quarterly or bi-annual reporting is required for the compliance year
F11: A1 | G11: A2 | H11: A3 | I11: A4 | J11: A5
A12: Hydrogen fluoride | C12: 1 hr | D12: 2 mg/m3 | F12: 0.014
A13: Cd and Th and their compounds | C13: 6-8hrs | D13: 0.05 mg/m3 | F13: 0.0073
A14: Hg and its compounds | C14: 6-8hrs | D14: 0.05 mg/m3 | F14: 0.0011
A15: Sb, As, Pb, Cr, Co, Cu, Mn, Ni, V and their compounds | C15: 6-8hrs | D15: 0.5 mg/m3 | F15: 0.47
A16: Dioxins & Furans (I-TEQ) | C16: 6-8hrs | D16: 0.1 ng/m3 | F16: 0.006
A17: PCBs (WHO-TEQ Humans / Mammals) | C17: 6-8hrs | D17: None set ng/m3 | F17: 0.00055
A18: PCBs (WHO-TEQ Fish) | C18: 6-8hrs | D18: None set ng/m3 | F18: 0
A19: PCBs (WHO-TEQ Birds) | C19: 6-8hrs | D19: None set ng/m3 | F19: 0.0032
A20: Dioxins & Furans (WHO-TEQ Humans / Mammals) | C20: 6-8hrs | D20: None set ng/m3 | F20: 0.0056
A21: Dioxins & Furans (WHO-TEQ Fish) | C21: 6-8hrs | D21: None set ng/m3 | F21: 0.0057
A22: Dioxins & Furans (WHO-TEQ Birds) | C22: 6-8hrs | D22: None set ng/m3 | F22: 0.0082
A23: Anthanthrene | C23: 6-8hrs | D23: None set µg/m3 | F23: 0.00095
A24: Benzo(a)anthracene | C24: 6-8hrs | D24: None set µg/m3 | F24: 0.00095
A25: Benzo(a)pyrene | C25: 6-8hrs | D25: None set µg/m3 | F25: 0.00095
A26: Benzo(b)fluoranthene | C26: 6-8hrs | D26: None set µg/m3 | F26: 0.00095
A27: Benzo(b)naptho(2,1-d) thiophene | C27: 6-8hrs | D27: None set µg/m3 | F27: 0.00055
A28: Benzo(c)phenanthrene | C28: 6-8hrs | D28: None set µg/m3 | F28: 0.00095
A29: Benzo(ghi)perylene | C29: 6-8hrs | D29: None set µg/m3 | F29: 0.00095
A30: Benzo(k)fluoranthene | C30: 6-8hrs | D30: None set µg/m3 | F30: 0.00095
A31: Cholanthrene | C31: 6-8hrs | D31: None set µg/m3 | F31: 0.00095
A32: Chrysene | C32: 6-8hrs | D32: None set µg/m3 | F32: 0.005
A33: Cyclopenta(cd)pyrene | C33: 6-8hrs | D33: None set µg/m3 | F33: 0.00095
A34: Dibenzo(ai)pyrene | C34: 6-8hrs | D34: None set µg/m3 | F34: 0.00095
A35: Dibenzo(ah)anthracene | C35: 6-8hrs | D35: None set µg/m3 | F35: 0.00095
A36: Fluoranthene | C36: 6-8hrs | D36: None set µg/m3 | F36: 0.01
A37: Indeno(123-cd) pyrene | C37: 6-8hrs | D37: None set µg/m3 | F37: 0.00095
A38: Naphthalene | C38: 6-8hrs | D38: None set µg/m3 | F38: 0.17
A39: Comments :
A40: Please note heavy metals average is average across all 3 sets of monitoring, including the ELV breach and re-test

Sheet Air (CEMS)
A1: =+'Cover Page'!$B$29 -> Annual Performance Report 2022 | I1: =+'Cover Page'!$B$33 -> Javelin Park Energy Recovery Facility
A3: Emissions to Air (continously monitored)
P4: Notes:
A5: Summary of monitoring undertaken, standards used and compliance | P5: Template may require adjustment for any bespoke monitoring requirements of permit
A6: Stack gases have been monitored by MCERTS accredited CEMS equipment. The performance of CEMs for these parameters complies with the requirements of BS EN 14181, including the requirements of QAL1, QAL2 and QAL3. | P6: Report to 2 decimal places, i.e. xx.xx%
A11: Results of emissions to air that are continuously monitored (maximum and average values for each line)
A12: Substance | B12: Reference Period | C12: Emission Limit Value | D12: A1 | F12: A2 | H12: A3 | J12: A4 | L12: A5
D13: Max. | E13: Avg. | F13: Max. | G13: Avg. | H13: Max. | I13: Avg. | J13: Max. | K13: Avg. | L13: Max. | M13: Avg.
A14: Oxides of nitrogen | B14: Daily mean | C14: 200 mg/m3 | D14: 195 | E14: 184.66
B15: ½ hourly mean | C15: 400 mg/m3 | D15: 270 | E15: 184.75
A16: Particulates | B16: Daily mean | C16: 10 mg/m3 | D16: 1 | E16: 0.23
B17: ½ hourly mean | C17: 30 mg/m3 | D17: 1 | E17: 0.23
A18: Total Organic Carbon | B18: Daily mean | C18: 10 mg/m3 | D18: 1 | E18: 0.05
B19: ½ hourly mean | C19: 20 mg/m3 | D19: 3 | E19: 0.05
A20: Hydrogen chloride | B20: Daily mean | C20: 10 mg/m3 | D20: 9 | E20: 7.18
B21: ½ hourly mean | C21: 60 mg/m3 | D21: 30 | E21: 7.17
A22: Sulphur dioxide | B22: Daily mean | C22: 50 mg/m3 | D22: 23 | E22: 12.13
B23: ½ hourly mean | C23: 200 mg/m3 | D23: 79 | E23: 12.25
A24: Carbon monoxide | B24: Daily mean | C24: 50 mg/m3 | D24: 7 | E24: 0.12
B25: ½ hourly mean * | C25: 100 mg/m3 * | D25: 147 | E25: 0.33
A27: Ammonia | B27: Daily mean | C27: No limit set | D27: 5 | E27: 0.86
A28: * = delete or amend as appropriate
A29: Comments :

Sheet HCl
A1: =+'Cover Page'!$B$29 -> Annual Performance Report 2022 | E1: =+'Cover Page'!$B$33 -> Javelin Park Energy Recovery Facility
A3: Monitoring of Hydrogen Chloride emissions | D3: Whole Installation | G3: See Notes in Cell Q3 | J3: =+A3 -> Monitoring of Hydrogen Chloride emissions | N3: Per Combustion Line | Q3: Notes:
Q4: User to add logic to complete Whole installation, Table A5:G18. From the data in Per Combustion Line, Table J6:O79, subject to No. of lines installed
A5: mg/Nm3 | B5: 1/2 Hourly Reference Periods | E5: Daily Reference Periods
A6: =+'Cover Page'!C39 -> 2022 | B6: 1/2 hourly HCl ELV | C6: Monthly 1/2 hourly mean | D6: Highest 1/2 hourly maximum | E6: Daily HCl ELV | F6: Monthly daily mean | G6: Highest daily maximum | J6: =+A6 -> 2022 | K6: mg/Nm3 | L6: Monthly 1/2 hourly mean | M6: Monthly 1/2 hourly maximum | N6: Monthly daily mean | O6: Monthly daily maximum
A7: Jan | B7: 60 | C7: 7 | D7: 18 | E7: 10 | F7: 7.22 | G7: 9 | J7: A1 | K7: Jan | L7: 7 | M7: 18 | N7: 7.22 | O7: 9
A8: Feb | B8: 60 | C8: 8 | D8: 20 | E8: 10 | F8: 7.931851852 | G8: 9 | K8: Feb | L8: 8 | M8: 20 | N8: 7.931851852 | O8: 9
A9: Mar | B9: 60 | C9: 6 | D9: 21 | E9: 10 | F9: 6.491153846 | G9: 8 | K9: Mar | L9: 6 | M9: 21 | N9: 6.491153846 | O9: 8 | Q9: Whole Installation table A5:G18:
A10: Apr | B10: 60 | C10: 7 | D10: 30 | E10: 10 | F10: 7.121 | G10: 9 | K10: Apr | L10: 7 | M10: 30 | N10: 7.121 | O10: 9 | Q10: Mean: for 1/2 hourly and daily periods calculate mean of values across all operational combustion lines for the month
A11: May | B11: 60 | C11: 6 | D11: 14 | E11: 10 | F11: 6.45516129 | G11: 9 | K11: May | L11: 6 | M11: 14 | N11: 6.45516129 | O11: 9
A12: Jun | B12: 60 | C12: 8 | D12: 19 | E12: 10 | F12: 7.657777778 | G12: 8 | K12: Jun | L12: 8 | M12: 19 | N12: 7.657777778 | O12: 8
A13: Jul | B13: 60 | C13: 9 | D13: 16 | E13: 10 | F13: 8.778709677 | G13: 9 | K13: Jul | L13: 9 | M13: 16 | N13: 8.778709677 | O13: 9 | Q13: Maximum: for 1/2 hourly and daily periods use the highest value across all operational combustion lines for the month
A14: Aug | B14: 60 | C14: 8 | D14: 13 | E14: 10 | F14: 7.607142857 | G14: 9 | K14: Aug | L14: 8 | M14: 13 | N14: 7.607142857 | O14: 9
A15: Sep | B15: 60 | C15: 7 | D15: 26 | E15: 10 | F15: 7.443 | G15: 9 | K15: Sep | L15: 7 | M15: 26 | N15: 7.443 | O15: 9
A16: Oct | B16: 60 | C16: 8 | D16: 25 | E16: 10 | F16: 7.718333333 | G16: 9 | K16: Oct | L16: 8 | M16: 25 | N16: 7.718333333 | O16: 9
A17: Nov | B17: 60 | C17: 6 | D17: 20 | E17: 10 | F17: 5.872666667 | G17: 7 | K17: Nov | L17: 6 | M17: 20 | N17: 5.872666667 | O17: 7
A18: Dec | B18: 60 | C18: 6 | D18: 16 | E18: 10 | F18: 5.868275862 | G18: 8 | K18: Dec | L18: 6 | M18: 16 | N18: 5.868275862 | O18: 8
K19: Annual | L19: =AVERAGE(L7:L18) -> 7.166666667 | M19: =MAX(M7:M18) -> 30 | N19: =AVERAGE(N7:N18) -> 7.180422764 | O19: =MAX(O7:O18) -> 9
J21: =+A6 -> 2022 | K21: mg/Nm3 | L21: Monthly 1/2 hourly mean | M21: Monthly 1/2 hourly maximum | N21: Monthly daily mean | O21: Monthly daily maximum
J22: A2 | K22: Jan
K23: Feb
K24: Mar
K25: Apr
K26: May
K27: Jun
K28: Jul
K29: Aug
K30: Sep
K31: Oct
K32: Nov
K33: Dec
K34: Annual | L34: =AVERAGE(L22:L33) ->  | M34: =MAX(M22:M33) -> 0 | N34: =AVERAGE(N22:N33) ->  | O34: =MAX(O22:O33) -> 0
J36: =+A6 -> 2022 | K36: mg/Nm3 | L36: Monthly 1/2 hourly mean | M36: Monthly 1/2 hourly maximum | N36: Monthly daily mean | O36: Monthly daily maximum
J37: A3 | K37: Jan
K38: Feb
K39: Mar
K40: Apr
K41: May
K42: Jun
K43: Jul
K44: Aug
K45: Sep
K46: Oct
K47: Nov
A48: Comments : | K48: Dec
K49: Annual | L49: =AVERAGE(L37:L48) ->  | M49: =MAX(M37:M48) -> 0 | N49: =AVERAGE(N37:N48) ->  | O49: =MAX(O37:O48) -> 0
J51: =+A6 -> 2022 | K51: mg/Nm3 | L51: Monthly 1/2 hourly mean | M51: Monthly 1/2 hourly maximum | N51: Monthly daily mean | O51: Monthly daily maximum
J52: A4 | K52: Jan
K53: Feb
K54: Mar
K55: Apr
K56: May
K57: Jun
K58: Jul
K59: Aug
K60: Sep
K61: Oct
K62: Nov
K63: Dec
K64: Annual | L64: =AVERAGE(L52:L63) ->  | M64: =MAX(M52:M63) -> 0 | N64: =AVERAGE(N52:N63) ->  | O64: =MAX(O52:O63) -> 0
J66: =+A6 -> 2022 | K66: mg/Nm3 | L66: Monthly 1/2 hourly mean | M66: Monthly 1/2 hourly maximum | N66: Monthly daily mean | O66: Monthly daily maximum
J67: A5 | K67: Jan
K68: Feb
K69: Mar
K70: Apr
K71: May
K72: Jun
K73: Jul
K74: Aug
K75: Sep
K76: Oct
K77: Nov
K78: Dec
K79: Annual | L79: =AVERAGE(L67:L78) ->  | M79: =MAX(M67:M78) -> 0 | N79: =AVERAGE(N67:N78) ->  | O79: =MAX(O67:O78) -> 0

Sheet SO2
A1: =+'Cover Page'!$B$29 -> Annual Performance Report 2022 | E1: =+'Cover Page'!$B$33 -> Javelin Park Energy Recovery Facility
A3: Monitoring of Sulphur dioxide emissions | D3: Whole Installation | G3: See Notes in Cell Q3 | J3: =+A3 -> Monitoring of Sulphur dioxide emissions | N3: Per Combustion Line | Q3: Notes:
Q4: User to add logic to complete Whole installation, Table A5:G18. From the data in Per Combustion Line, Table J6:O79, subject to No. of lines installed
A5: mg/Nm3 | B5: 1/2 Hourly Reference Periods | E5: Daily Reference Periods
A6: =+'Cover Page'!C39 -> 2022 | B6: 1/2 hourly SO2 ELV | C6: Monthly 1/2 hourly mean | D6: Highest 1/2 hourly maximum | E6: Daily SO2 ELV | F6: Monthly daily mean | G6: Highest daily maximum | J6: =+A6 -> 2022 | K6: mg/Nm3 | L6: Monthly 1/2 hourly mean | M6: Monthly 1/2 hourly maximum | N6: Monthly daily mean | O6: Monthly daily maximum
A7: Jan | B7: 200 | C7: 14 | D7: 59 | E7: 50 | F7: 14.16 | G7: 18 | J7: A1 | K7: Jan | L7: 14 | M7: 59 | N7: 14.16 | O7: 18
A8: Feb | B8: 200 | C8: 12 | D8: 50 | E8: 50 | F8: 11.70888889 | G8: 19 | K8: Feb | L8: 12 | M8: 50 | N8: 11.70888889 | O8: 19
A9: Mar | B9: 200 | C9: 14 | D9: 79 | E9: 50 | F9: 13.29538462 | G9: 21 | K9: Mar | L9: 14 | M9: 79 | N9: 13.29538462 | O9: 21 | Q9: Whole Installation table A5:G18:
A10: Apr | B10: 200 | C10: 10 | D10: 78 | E10: 50 | F10: 10.402 | G10: 20 | K10: Apr | L10: 10 | M10: 78 | N10: 10.402 | O10: 20 | Q10: Mean: for 1/2 hourly and daily periods calculate mean of values across all operational combustion lines for the month
A11: May | B11: 200 | C11: 11 | D11: 43 | E11: 50 | F11: 11.23774194 | G11: 17 | K11: May | L11: 11 | M11: 43 | N11: 11.23774194 | O11: 17
A12: Jun | B12: 200 | C12: 11 | D12: 43 | E12: 50 | F12: 11.05222222 | G12: 15 | K12: Jun | L12: 11 | M12: 43 | N12: 11.05222222 | O12: 15
A13: Jul | B13: 200 | C13: 10 | D13: 38 | E13: 50 | F13: 9.722903226 | G13: 12 | K13: Jul | L13: 10 | M13: 38 | N13: 9.722903226 | O13: 12 | Q13: Maximum: for 1/2 hourly and daily periods use the highest value across all operational combustion lines for the month
A14: Aug | B14: 200 | C14: 11 | D14: 58 | E14: 50 | F14: 9.519285714 | G14: 16 | K14: Aug | L14: 11 | M14: 58 | N14: 9.519285714 | O14: 16
A15: Sep | B15: 200 | C15: 11 | D15: 69 | E15: 50 | F15: 11.47033333 | G15: 16 | K15: Sep | L15: 11 | M15: 69 | N15: 11.47033333 | O15: 16
A16: Oct | B16: 200 | C16: 13 | D16: 69 | E16: 50 | F16: 13.22066667 | G16: 21 | K16: Oct | L16: 13 | M16: 69 | N16: 13.22066667 | O16: 21
A17: Nov | B17: 200 | C17: 13 | D17: 63 | E17: 50 | F17: 13.152 | G17: 19 | K17: Nov | L17: 13 | M17: 63 | N17: 13.152 | O17: 19
A18: Dec | B18: 200 | C18: 17 | D18: 56 | E18: 50 | F18: 16.58793103 | G18: 23 | K18: Dec | L18: 17 | M18: 56 | N18: 16.58793103 | O18: 23
K19: Annual | L19: =AVERAGE(L7:L18) -> 12.25 | M19: =MAX(M7:M18) -> 79 | N19: =AVERAGE(N7:N18) -> 12.12744647 | O19: =MAX(O7:O18) -> 23
J21: =+A6 -> 2022 | K21: mg/Nm3 | L21: Monthly 1/2 hourly mean | M21: Monthly 1/2 hourly maximum | N21: Monthly daily mean | O21: Monthly daily maximum
J22: A2 | K22: Jan
K23: Feb
K24: Mar
K25: Apr
K26: May
K27: Jun
K28: Jul
K29: Aug
K30: Sep
K31: Oct
K32: Nov
K33: Dec
K34: Annual | L34: =AVERAGE(L22:L33) ->  | M34: =MAX(M22:M33) -> 0 | N34: =AVERAGE(N22:N33) ->  | O34: =MAX(O22:O33) -> 0
J36: =+A6 -> 2022 | K36: mg/Nm3 | L36: Monthly 1/2 hourly mean | M36: Monthly 1/2 hourly maximum | N36: Monthly daily mean | O36: Monthly daily maximum
J37: A3 | K37: Jan
K38: Feb
K39: Mar
K40: Apr
K41: May
K42: Jun
K43: Jul
K44: Aug
K45: Sep
K46: Oct
K47: Nov
A48: Comments : | K48: Dec
K49: Annual | L49: =AVERAGE(L37:L48) ->  | M49: =MAX(M37:M48) -> 0 | N49: =AVERAGE(N37:N48) ->  | O49: =MAX(O37:O48) -> 0
J51: =+A6 -> 2022 | K51: mg/Nm3 | L51: Monthly 1/2 hourly mean | M51: Monthly 1/2 hourly maximum | N51: Monthly daily mean | O51: Monthly daily maximum
J52: A4 | K52: Jan
K53: Feb
K54: Mar
K55: Apr
K56: May
K57: Jun
K58: Jul
K59: Aug
K60: Sep
K61: Oct
K62: Nov
K63: Dec
K64: Annual | L64: =AVERAGE(L52:L63) ->  | M64: =MAX(M52:M63) -> 0 | N64: =AVERAGE(N52:N63) ->  | O64: =MAX(O52:O63) -> 0
J66: =+A6 -> 2022 | K66: mg/Nm3 | L66: Monthly 1/2 hourly mean | M66: Monthly 1/2 hourly maximum | N66: Monthly daily mean | O66: Monthly daily maximum
J67: A5 | K67: Jan
K68: Feb
K69: Mar
K70: Apr
K71: May
K72: Jun
K73: Jul
K74: Aug
K75: Sep
K76: Oct
K77: Nov
K78: Dec
K79: Annual | L79: =AVERAGE(L67:L78) ->  | M79: =MAX(M67:M78) -> 0 | N79: =AVERAGE(N67:N78) ->  | O79: =MAX(O67:O78) -> 0

Sheet NOx
A1: =+'Cover Page'!$B$29 -> Annual Performance Report 2022 | E1: =+'Cover Page'!$B$33 -> Javelin Park Energy Recovery Facility
A3: Monitoring of Oxides of Nitrogen emissions | D3: Whole Installation | G3: See Notes in Cell Q3 | J3: =+A3 -> Monitoring of Oxides of Nitrogen emissions | N3: Per Combustion Line | Q3: Notes:
Q4: User to add logic to complete Whole installation, Table A5:G18. From the data in Per Combustion Line, Table J6:O79, subject to No. of lines installed
A5: mg/Nm3 | B5: 1/2 Hourly Reference Periods | E5: Daily Reference Periods
A6: =+'Cover Page'!C39 -> 2022 | B6: 1/2 hourly NOx ELV | C6: Monthly 1/2 hourly mean | D6: Highest 1/2 hourly maximum | E6: Daily NOx ELV | F6: Monthly daily mean | G6: Highest daily maximum | J6: =+A6 -> 2022 | K6: mg/Nm3 | L6: Monthly 1/2 hourly mean | M6: Monthly 1/2 hourly maximum | N6: Monthly daily mean | O6: Monthly daily maximum
A7: Jan | B7: 400 | C7: 182 | D7: 228 | E7: 200 | F7: 181.65 | G7: 186 | J7: A1 | K7: Jan | L7: 182 | M7: 228 | N7: 181.65 | O7: 186
A8: Feb | B8: 400 | C8: 178 | D8: 232 | E8: 200 | F8: 178.7685185 | G8: 188 | K8: Feb | L8: 178 | M8: 232 | N8: 178.7685185 | O8: 188
A9: Mar | B9: 400 | C9: 185 | D9: 234 | E9: 200 | F9: 184.9461538 | G9: 193 | K9: Mar | L9: 185 | M9: 234 | N9: 184.9461538 | O9: 193 | Q9: Whole Installation table A5:G18:
A10: Apr | B10: 400 | C10: 181 | D10: 214 | E10: 200 | F10: 181.0393333 | G10: 187 | K10: Apr | L10: 181 | M10: 214 | N10: 181.0393333 | O10: 187 | Q10: Mean: for 1/2 hourly and daily periods calculate mean of values across all operational combustion lines for the month
A11: May | B11: 400 | C11: 184 | D11: 241 | E11: 200 | F11: 183.6777419 | G11: 189 | K11: May | L11: 184 | M11: 241 | N11: 183.6777419 | O11: 189
A12: Jun | B12: 400 | C12: 185 | D12: 256 | E12: 200 | F12: 185.8433333 | G12: 193 | K12: Jun | L12: 185 | M12: 256 | N12: 185.8433333 | O12: 193
A13: Jul | B13: 400 | C13: 186 | D13: 216 | E13: 200 | F13: 186.2141935 | G13: 189 | K13: Jul | L13: 186 | M13: 216 | N13: 186.2141935 | O13: 189 | Q13: Maximum: for 1/2 hourly and daily periods use the highest value across all operational combustion lines for the month
A14: Aug | B14: 400 | C14: 189 | D14: 270 | E14: 200 | F14: 187.0735714 | G14: 190 | K14: Aug | L14: 189 | M14: 270 | N14: 187.0735714 | O14: 190
A15: Sep | B15: 400 | C15: 188 | D15: 218 | E15: 200 | F15: 188.4383333 | G15: 195 | K15: Sep | L15: 188 | M15: 218 | N15: 188.4383333 | O15: 195
A16: Oct | B16: 400 | C16: 189 | D16: 218 | E16: 200 | F16: 188.5126667 | G16: 193 | K16: Oct | L16: 189 | M16: 218 | N16: 188.5126667 | O16: 193
A17: Nov | B17: 400 | C17: 187 | D17: 237 | E17: 200 | F17: 187.291 | G17: 191 | K17: Nov | L17: 187 | M17: 237 | N17: 187.291 | O17: 191
A18: Dec | B18: 400 | C18: 183 | D18: 270 | E18: 200 | F18: 182.4893103 | G18: 194 | K18: Dec | L18: 183 | M18: 270 | N18: 182.4893103 | O18: 194
K19: Annual | L19: =AVERAGE(L7:L18) -> 184.75 | M19: =MAX(M7:M18) -> 270 | N19: =AVERAGE(N7:N18) -> 184.662013 | O19: =MAX(O7:O18) -> 195
J21: =+A6 -> 2022 | K21: mg/Nm3 | L21: Monthly 1/2 hourly mean | M21: Monthly 1/2 hourly maximum | N21: Monthly daily mean | O21: Monthly daily maximum
J22: A2 | K22: Jan
K23: Feb
K24: Mar
K25: Apr
K26: May
K27: Jun
K28: Jul
K29: Aug
K30: Sep
K31: Oct
K32: Nov
K33: Dec
K34: Annual | L34: =AVERAGE(L22:L33) ->  | M34: =MAX(M22:M33) -> 0 | N34: =AVERAGE(N22:N33) ->  | O34: =MAX(O22:O33) -> 0
J36: =+A6 -> 2022 | K36: mg/Nm3 | L36: Monthly 1/2 hourly mean | M36: Monthly 1/2 hourly maximum | N36: Monthly daily mean | O36: Monthly daily maximum
J37: A3 | K37: Jan
K38: Feb
K39: Mar
K40: Apr
K41: May
K42: Jun
K43: Jul
K44: Aug
K45: Sep
K46: Oct
K47: Nov
A48: Comments : | K48: Dec
K49: Annual | L49: =AVERAGE(L37:L48) ->  | M49: =MAX(M37:M48) -> 0 | N49: =AVERAGE(N37:N48) ->  | O49: =MAX(O37:O48) -> 0
J51: =+A6 -> 2022 | K51: mg/Nm3 | L51: Monthly 1/2 hourly mean | M51: Monthly 1/2 hourly maximum | N51: Monthly daily mean | O51: Monthly daily maximum
J52: A4 | K52: Jan
K53: Feb
K54: Mar
K55: Apr
K56: May
K57: Jun
K58: Jul
K59: Aug
K60: Sep
K61: Oct
K62: Nov
K63: Dec
K64: Annual | L64: =AVERAGE(L52:L63) ->  | M64: =MAX(M52:M63) -> 0 | N64: =AVERAGE(N52:N63) ->  | O64: =MAX(O52:O63) -> 0
J66: =+A6 -> 2022 | K66: mg/Nm3 | L66: Monthly 1/2 hourly mean | M66: Monthly 1/2 hourly maximum | N66: Monthly daily mean | O66: Monthly daily maximum
J67: A5 | K67: Jan
K68: Feb
K69: Mar
K70: Apr
K71: May
K72: Jun
K73: Jul
K74: Aug
K75: Sep
K76: Oct
K77: Nov
K78: Dec
K79: Annual | L79: =AVERAGE(L67:L78) ->  | M79: =MAX(M67:M78) -> 0 | N79: =AVERAGE(N67:N78) ->  | O79: =MAX(O67:O78) -> 0

Sheet TOC
A1: =+'Cover Page'!$B$29 -> Annual Performance Report 2022 | E1: =+'Cover Page'!$B$33 -> Javelin Park Energy Recovery Facility
A3: Monitoring of Total organic carbon emissions | D3: Whole Installation | G3: See Notes in Cell Q3 | J3: =+A3 -> Monitoring of Total organic carbon emissions | N3: Per Combustion Line | Q3: Notes:
Q4: User to add logic to complete Whole installation, Table A5:G18. From the data in Per Combustion Line, Table J6:O79, subject to No. of lines installed
A5: mg/Nm3 | B5: 1/2 Hourly Reference Periods | E5: Daily Reference Periods
A6: =+'Cover Page'!C39 -> 2022 | B6: 1/2 hourly TOC ELV | C6: Monthly 1/2 hourly mean | D6: Highest 1/2 hourly maximum | E6: Daily TOC ELV | F6: Monthly daily mean | G6: Highest daily maximum | J6: =+A6 -> 2022 | K6: mg/Nm3 | L6: Monthly 1/2 hourly mean | M6: Monthly 1/2 hourly maximum | N6: Monthly daily mean | O6: Monthly daily maximum
A7: Jan | B7: 20 | C7: 0 | D7: 3 | E7: 10 | F7: -0.008 | G7: 0 | J7: A1 | K7: Jan | L7: 0 | M7: 3 | N7: -0.008 | O7: 0
A8: Feb | B8: 20 | C8: 0 | D8: 3 | E8: 10 | F8: 0.1051851852 | G8: 0 | K8: Feb | L8: 0 | M8: 3 | N8: 0.1051851852 | O8: 0
A9: Mar | B9: 20 | C9: 0 | D9: 1 | E9: 10 | F9: 0.05961538462 | G9: 0 | K9: Mar | L9: 0 | M9: 1 | N9: 0.05961538462 | O9: 0 | Q9: Whole Installation table A5:G18:
A10: Apr | B10: 20 | C10: 0 | D10: 3 | E10: 10 | F10: 0.068 | G10: 0 | K10: Apr | L10: 0 | M10: 3 | N10: 0.068 | O10: 0 | Q10: Mean: for 1/2 hourly and daily periods calculate mean of values across all operational combustion lines for the month
A11: May | B11: 20 | C11: 0 | D11: 3 | E11: 10 | F11: 0.07870967742 | G11: 0 | K11: May | L11: 0 | M11: 3 | N11: 0.07870967742 | O11: 0
A12: Jun | B12: 20 | C12: 0 | D12: 2 | E12: 10 | F12: 0.03777777778 | G12: 0 | K12: Jun | L12: 0 | M12: 2 | N12: 0.03777777778 | O12: 0
A13: Jul | B13: 20 | C13: 0 | D13: 2 | E13: 10 | F13: 0.01 | G13: 0 | K13: Jul | L13: 0 | M13: 2 | N13: 0.01 | O13: 0 | Q13: Maximum: for 1/2 hourly and daily periods use the highest value across all operational combustion lines for the month
A14: Aug | B14: 20 | C14: 0 | D14: 2 | E14: 10 | F14: 0.155 | G14: 1 | K14: Aug | L14: 0 | M14: 2 | N14: 0.155 | O14: 1
A15: Sep | B15: 20 | C15: 0 | D15: 3 | E15: 10 | F15: 0.08233333333 | G15: 0 | K15: Sep | L15: 0 | M15: 3 | N15: 0.08233333333 | O15: 0
A16: Oct | B16: 20 | C16: 0 | D16: 3 | E16: 10 | F16: 0.058 | G16: 0 | K16: Oct | L16: 0 | M16: 3 | N16: 0.058 | O16: 0
A17: Nov | B17: 20 | C17: 0 | D17: 2 | E17: 10 | F17: -0.005 | G17: 0 | K17: Nov | L17: 0 | M17: 2 | N17: -0.005 | O17: 0
A18: Dec | B18: 20 | C18: 0 | D18: 2 | E18: 10 | F18: -0.02034482759 | G18: 0 | K18: Dec | L18: 0 | M18: 2 | N18: -0.02034482759 | O18: 0
K19: Annual | L19: =AVERAGE(L7:L18) -> 0 | M19: =MAX(M7:M18) -> 3 | N19: =AVERAGE(N7:N18) -> 0.05177304423 | O19: =MAX(O7:O18) -> 1
J21: =+A6 -> 2022 | K21: mg/Nm3 | L21: Monthly 1/2 hourly mean | M21: Monthly 1/2 hourly maximum | N21: Monthly daily mean | O21: Monthly daily maximum
J22: A2 | K22: Jan
K23: Feb
K24: Mar
K25: Apr
K26: May
K27: Jun
K28: Jul
K29: Aug
K30: Sep
K31: Oct
K32: Nov
K33: Dec
K34: Annual | L34: =AVERAGE(L22:L33) ->  | M34: =MAX(M22:M33) -> 0 | N34: =AVERAGE(N22:N33) ->  | O34: =MAX(O22:O33) -> 0
J36: =+A6 -> 2022 | K36: mg/Nm3 | L36: Monthly 1/2 hourly mean | M36: Monthly 1/2 hourly maximum | N36: Monthly daily mean | O36: Monthly daily maximum
J37: A3 | K37: Jan
K38: Feb
K39: Mar
K40: Apr
K41: May
K42: Jun
K43: Jul
K44: Aug
K45: Sep
K46: Oct
K47: Nov
A48: Comments : | K48: Dec
K49: Annual | L49: =AVERAGE(L37:L48) ->  | M49: =MAX(M37:M48) -> 0 | N49: =AVERAGE(N37:N48) ->  | O49: =MAX(O37:O48) -> 0
J51: =+A6 -> 2022 | K51: mg/Nm3 | L51: Monthly 1/2 hourly mean | M51: Monthly 1/2 hourly maximum | N51: Monthly daily mean | O51: Monthly daily maximum
J52: A4 | K52: Jan
K53: Feb
K54: Mar
K55: Apr
K56: May
K57: Jun
K58: Jul
K59: Aug
K60: Sep
K61: Oct
K62: Nov
K63: Dec
K64: Annual | L64: =AVERAGE(L52:L63) ->  | M64: =MAX(M52:M63) -> 0 | N64: =AVERAGE(N52:N63) ->  | O64: =MAX(O52:O63) -> 0
J66: =+A6 -> 2022 | K66: mg/Nm3 | L66: Monthly 1/2 hourly mean | M66: Monthly 1/2 hourly maximum | N66: Monthly daily mean | O66: Monthly daily maximum
J67: A5 | K67: Jan
K68: Feb
K69: Mar
K70: Apr
K71: May
K72: Jun
K73: Jul
K74: Aug
K75: Sep
K76: Oct
K77: Nov
K78: Dec
K79: Annual | L79: =AVERAGE(L67:L78) ->  | M79: =MAX(M67:M78) -> 0 | N79: =AVERAGE(N67:N78) ->  | O79: =MAX(O67:O78) -> 0

Sheet Particulates
A1: =+'Cover Page'!$B$29 -> Annual Performance Report 2022 | E1: =+'Cover Page'!$B$33 -> Javelin Park Energy Recovery Facility
A3: Monitoring of Particulate matter emissions | D3: Whole Installation | G3: See Notes in Cell Q3 | J3: =+A3 -> Monitoring of Particulate matter emissions | N3: Per Combustion Line | Q3: Notes:
Q4: User to add logic to complete Whole installation, Table A5:G18. From the data in Per Combustion Line, Table J6:O79, subject to No. of lines installed
A5: mg/Nm3 | B5: 1/2 Hourly Reference Periods | E5: Daily Reference Periods
A6: =+'Cover Page'!C39 -> 2022 | B6: 1/2 hourly PM ELV | C6: Monthly 1/2 hourly mean | D6: Highest 1/2 hourly maximum | E6: Daily PM ELV | F6: Monthly daily mean | G6: Highest daily maximum | J6: =+A6 -> 2022 | K6: mg/Nm3 | L6: Monthly 1/2 hourly mean | M6: Monthly 1/2 hourly maximum | N6: Monthly daily mean | O6: Monthly daily maximum
A7: Jan | B7: 30 | C7: 0 | D7: 0 | E7: 10 | F7: 0.17 | G7: 0 | J7: A1 | K7: Jan | L7: 0 | M7: 0 | N7: 0.17 | O7: 0
A8: Feb | B8: 30 | C8: 0 | D8: 0 | E8: 10 | F8: 0.1914814815 | G8: 0 | K8: Feb | L8: 0 | M8: 0 | N8: 0.1914814815 | O8: 0
A9: Mar | B9: 30 | C9: 0 | D9: 0 | E9: 10 | F9: 0.1923076923 | G9: 0 | K9: Mar | L9: 0 | M9: 0 | N9: 0.1923076923 | O9: 0 | Q9: Whole Installation table A5:G18:
A10: Apr | B10: 30 | C10: 0 | D10: 0 | E10: 10 | F10: 0.2196666667 | G10: 0 | K10: Apr | L10: 0 | M10: 0 | N10: 0.2196666667 | O10: 0 | Q10: Mean: for 1/2 hourly and daily periods calculate mean of values across all operational combustion lines for the month
A11: May | B11: 30 | C11: 0 | D11: 0 | E11: 10 | F11: 0.2348387097 | G11: 0 | K11: May | L11: 0 | M11: 0 | N11: 0.2348387097 | O11: 0
A12: Jun | B12: 30 | C12: 0 | D12: 0 | E12: 10 | F12: 0.2388888889 | G12: 0 | K12: Jun | L12: 0 | M12: 0 | N12: 0.2388888889 | O12: 0
A13: Jul | B13: 30 | C13: 0 | D13: 0 | E13: 10 | F13: 0.2274193548 | G13: 0 | K13: Jul | L13: 0 | M13: 0 | N13: 0.2274193548 | O13: 0 | Q13: Maximum: for 1/2 hourly and daily periods use the highest value across all operational combustion lines for the month
A14: Aug | B14: 30 | C14: 0 | D14: 0 | E14: 10 | F14: 0.2421428571 | G14: 0 | K14: Aug | L14: 0 | M14: 0 | N14: 0.2421428571 | O14: 0
A15: Sep | B15: 30 | C15: 0 | D15: 0 | E15: 10 | F15: 0.1833333333 | G15: 0 | K15: Sep | L15: 0 | M15: 0 | N15: 0.1833333333 | O15: 0
A16: Oct | B16: 30 | C16: 0 | D16: 0 | E16: 10 | F16: 0.246 | G16: 0 | K16: Oct | L16: 0 | M16: 0 | N16: 0.246 | O16: 0
A17: Nov | B17: 30 | C17: 0 | D17: 1 | E17: 10 | F17: 0.3003333333 | G17: 0 | K17: Nov | L17: 0 | M17: 1 | N17: 0.3003333333 | O17: 0
A18: Dec | B18: 30 | C18: 0 | D18: 0 | E18: 10 | F18: 0.2906896552 | G18: 0 | K18: Dec | L18: 0 | M18: 0 | N18: 0.2906896552 | O18: 0
K19: Annual | L19: =AVERAGE(L7:L18) -> 0 | M19: =MAX(M7:M18) -> 1 | N19: =AVERAGE(N7:N18) -> 0.2280918311 | O19: =MAX(O7:O18) -> 0
J21: =+A6 -> 2022 | K21: mg/Nm3 | L21: Monthly 1/2 hourly mean | M21: Monthly 1/2 hourly maximum | N21: Monthly daily mean | O21: Monthly daily maximum
J22: A2 | K22: Jan
K23: Feb
K24: Mar
K25: Apr
K26: May
K27: Jun
K28: Jul
K29: Aug
K30: Sep
K31: Oct
K32: Nov
K33: Dec
K34: Annual | L34: =AVERAGE(L22:L33) ->  | M34: =MAX(M22:M33) -> 0 | N34: =AVERAGE(N22:N33) ->  | O34: =MAX(O22:O33) -> 0
J36: =+A6 -> 2022 | K36: mg/Nm3 | L36: Monthly 1/2 hourly mean | M36: Monthly 1/2 hourly maximum | N36: Monthly daily mean | O36: Monthly daily maximum
J37: A3 | K37: Jan
K38: Feb
K39: Mar
K40: Apr
K41: May
K42: Jun
K43: Jul
K44: Aug
K45: Sep
K46: Oct
K47: Nov
A48: Comments : | K48: Dec
K49: Annual | L49: =AVERAGE(L37:L48) ->  | M49: =MAX(M37:M48) -> 0 | N49: =AVERAGE(N37:N48) ->  | O49: =MAX(O37:O48) -> 0
J51: =+A6 -> 2022 | K51: mg/Nm3 | L51: Monthly 1/2 hourly mean | M51: Monthly 1/2 hourly maximum | N51: Monthly daily mean | O51: Monthly daily maximum
J52: A4 | K52: Jan
K53: Feb
K54: Mar
K55: Apr
K56: May
K57: Jun
K58: Jul
K59: Aug
K60: Sep
K61: Oct
K62: Nov
K63: Dec
K64: Annual | L64: =AVERAGE(L52:L63) ->  | M64: =MAX(M52:M63) -> 0 | N64: =AVERAGE(N52:N63) ->  | O64: =MAX(O52:O63) -> 0
J66: =+A6 -> 2022 | K66: mg/Nm3 | L66: Monthly 1/2 hourly mean | M66: Monthly 1/2 hourly maximum | N66: Monthly daily mean | O66: Monthly daily maximum
J67: A5 | K67: Jan
K68: Feb
K69: Mar
K70: Apr
K71: May
K72: Jun
K73: Jul
K74: Aug
K75: Sep
K76: Oct
K77: Nov
K78: Dec
K79: Annual | L79: =AVERAGE(L67:L78) ->  | M79: =MAX(M67:M78) -> 0 | N79: =AVERAGE(N67:N78) ->  | O79: =MAX(O67:O78) -> 0

Sheet CO 0.5hourly
A1: =+'Cover Page'!$B$29 -> Annual Performance Report 2022 | E1: =+'Cover Page'!$B$33 -> Javelin Park Energy Recovery Facility
A3: Monitoring of Carbon Monoxide (half hourly) | D3: Whole Installation | G3: See Notes in Cell Q3 | J3: =+A3 -> Monitoring of Carbon Monoxide (half hourly) | N3: Per Combustion Line | Q3: Notes:
Q4: User to add logic to complete Whole installation, Table A5:G18. From the data in Per Combustion Line, Table J6:O79, subject to No. of lines installed
A5: mg/Nm3 | B5: 1/2 Hourly Reference Periods | E5: Daily Reference Periods
A6: =+'Cover Page'!C39 -> 2022 | B6: 1/2 hourly CO ELV | C6: Monthly 1/2 hourly mean | D6: Highest 1/2 hourly maximum | E6: Daily CO ELV | F6: Monthly daily mean | G6: Highest daily maximum | J6: =+A6 -> 2022 | K6: mg/Nm3 | L6: Monthly 1/2 hourly mean | M6: Monthly 1/2 hourly maximum | N6: Monthly daily mean | O6: Monthly daily maximum
A7: Jan | B7: 100 | C7: 0 | D7: 81 | E7: 50 | F7: -0.815 | G7: 1 | J7: A1 | K7: Jan | L7: 0 | M7: 81 | N7: -0.815 | O7: 1
A8: Feb | B8: =+B7 -> 100 | C8: 0 | D8: 77 | E8: =+E7 -> 50 | F8: -0.12 | G8: 2 | K8: Feb | L8: 0 | M8: 77 | N8: -0.12 | O8: 2
A9: Mar | B9: =+B8 -> 100 | C9: 0 | D9: 99 | E9: =+E8 -> 50 | F9: -0.2542307692 | G9: 2 | K9: Mar | L9: 0 | M9: 99 | N9: -0.2542307692 | O9: 2 | Q9: Whole Installation table A5:G18:
A10: Apr | B10: 100 | C10: 0 | D10: 64 | E10: 50 | F10: -0.06666666667 | G10: 1 | K10: Apr | L10: 0 | M10: 64 | N10: -0.06666666667 | O10: 1 | Q10: Mean: for 1/2 hourly and daily periods calculate mean of values across all operational combustion lines for the month
A11: May | B11: 100 | C11: 0 | D11: 137 | E11: 50 | F11: 0.1961290323 | G11: 3 | K11: May | L11: 0 | M11: 137 | N11: 0.1961290323 | O11: 3
A12: Jun | B12: 100 | C12: 0 | D12: 147 | E12: 50 | F12: -0.3003703704 | G12: 3 | K12: Jun | L12: 0 | M12: 147 | N12: -0.3003703704 | O12: 3
A13: Jul | B13: 100 | C13: 0 | D13: 134 | E13: 50 | F13: -0.3019354839 | G13: 3 | K13: Jul | L13: 0 | M13: 134 | N13: -0.3019354839 | O13: 3 | Q13: Maximum: for 1/2 hourly and daily periods use the highest value across all operational combustion lines for the month
A14: Aug | B14: 100 | C14: 1 | D14: 119 | E14: 50 | F14: 0.6807142857 | G14: 7 | K14: Aug | L14: 1 | M14: 119 | N14: 0.6807142857 | O14: 7
A15: Sep | B15: 100 | C15: 0 | D15: 124 | E15: 50 | F15: 0.2346666667 | G15: 4 | K15: Sep | L15: 0 | M15: 124 | N15: 0.2346666667 | O15: 4
A16: Oct | B16: 100 | C16: 1 | D16: 72 | E16: 50 | F16: 0.476 | G16: 2 | K16: Oct | L16: 1 | M16: 72 | N16: 0.476 | O16: 2
A17: Nov | B17: 100 | C17: 1 | D17: 87 | E17: 50 | F17: 1.005333333 | G17: 4 | K17: Nov | L17: 1 | M17: 87 | N17: 1.005333333 | O17: 4
A18: Dec | B18: 100 | C18: 1 | D18: 80 | E18: 50 | F18: 0.7272413793 | G18: 3 | K18: Dec | L18: 1 | M18: 80 | N18: 0.7272413793 | O18: 3
K19: Annual | L19: =AVERAGE(L7:L18) -> 0.3333333333 | M19: =MAX(M7:M18) -> 147 | N19: =AVERAGE(N7:N18) -> 0.1218234506 | O19: =MAX(O7:O18) -> 7
J21: =+A6 -> 2022 | K21: mg/Nm3 | L21: Monthly 1/2 hourly mean | M21: Monthly 1/2 hourly maximum | N21: Monthly daily mean | O21: Monthly daily maximum
J22: A2 | K22: Jan
K23: Feb
K24: Mar
K25: Apr
K26: May
K27: Jun
K28: Jul
K29: Aug
K30: Sep
K31: Oct
K32: Nov
K33: Dec
K34: Annual | L34: =AVERAGE(L22:L33) ->  | M34: =MAX(M22:M33) -> 0 | N34: =AVERAGE(N22:N33) ->  | O34: =MAX(O22:O33) -> 0
J36: =+A6 -> 2022 | K36: mg/Nm3 | L36: Monthly 1/2 hourly mean | M36: Monthly 1/2 hourly maximum | N36: Monthly daily mean | O36: Monthly daily maximum
J37: A3 | K37: Jan
K38: Feb
K39: Mar
K40: Apr
K41: May
K42: Jun
K43: Jul
K44: Aug
K45: Sep
K46: Oct
K47: Nov
A48: Comments : | K48: Dec
K49: Annual | L49: =AVERAGE(L37:L48) ->  | M49: =MAX(M37:M48) -> 0 | N49: =AVERAGE(N37:N48) ->  | O49: =MAX(O37:O48) -> 0
J51: =+A6 -> 2022 | K51: mg/Nm3 | L51: Monthly 1/2 hourly mean | M51: Monthly 1/2 hourly maximum | N51: Monthly daily mean | O51: Monthly daily maximum
J52: A4 | K52: Jan
K53: Feb
K54: Mar
K55: Apr
K56: May
K57: Jun
K58: Jul
K59: Aug
K60: Sep
K61: Oct
K62: Nov
K63: Dec
K64: Annual | L64: =AVERAGE(L52:L63) ->  | M64: =MAX(M52:M63) -> 0 | N64: =AVERAGE(N52:N63) ->  | O64: =MAX(O52:O63) -> 0
J66: =+A6 -> 2022 | K66: mg/Nm3 | L66: Monthly 1/2 hourly mean | M66: Monthly 1/2 hourly maximum | N66: Monthly daily mean | O66: Monthly daily maximum
J67: A5 | K67: Jan
K68: Feb
K69: Mar
K70: Apr
K71: May
K72: Jun
K73: Jul
K74: Aug
K75: Sep
K76: Oct
K77: Nov
K78: Dec
K79: Annual | L79: =AVERAGE(L67:L78) ->  | M79: =MAX(M67:M78) -> 0 | N79: =AVERAGE(N67:N78) ->  | O79: =MAX(O67:O78) -> 0

Sheet CO 95% 10 min
A1: =+'Cover Page'!$B$29 -> Annual Performance Report 2022 | E1: =+'Cover Page'!$B$33 -> Javelin Park Energy Recovery Facility
A3: Monitoring of Carbon Monoxide (10-minute avg) | E3: Whole Installation | H3: See Notes in Cell S3 | J3: =+A3 -> Monitoring of Carbon Monoxide (10-minute avg) | O3: Per Combustion Line | Q3: Notes: | S3: Notes:
S4: User to add logic to complete Whole installation, Table A5:H18. From the data in Per Combustion Line, Table K6:Q79, subject to No. of lines installed
A5: mg/Nm3 | B5: 10-minute Reference Periods | F5: Daily Reference Periods
A6: =+'Cover Page'!C39 -> 2022 | B6: 95%ile 10-min avg CO ELV | C6: 95%ile 10-min avg maximum | D6: Monthly CO 10-min avg mean | E6: 10-min avg maximum | F6: Daily CO ELV | G6: Monthly daily mean | H6: Highest daily maximum | K6: =+A6 -> 2022 | L6: mg/Nm3 | M6: 95%ile 10-min avg maximum | N6: Monthly CO 10-min avg mean | O6: 10-min avg maximum | P6: Monthly daily mean | Q6: Monthly daily maximum
A7: Jan | B7: 150 | F7: 50 | K7: A1 | L7: Jan
A8: Feb | B8: =+B7 -> 150 | F8: =+F7 -> 50 | L8: Feb
A9: Mar | B9: =+B8 -> 150 | F9: =+F8 -> 50 | L9: Mar | S9: Whole Installation table A5:H18:
A10: Apr | B10: 150 | F10: 50 | L10: Apr | S10: Mean: for 10-min and daily periods use average of all operational combustion lines.
A11: May | B11: 150 | F11: 50 | L11: May
A12: Jun | B12: 150 | F12: 50 | L12: Jun
A13: Jul | B13: 150 | F13: 50 | L13: Jul | S13: Maximum: for 10-min and daily periods use the highest of all operational combustion lines in any month.
A14: Aug | B14: 150 | F14: 50 | L14: Aug
A15: Sep | B15: 150 | F15: 50 | L15: Sep
A16: Oct | B16: 150 | F16: 50 | L16: Oct
A17: Nov | B17: 150 | F17: 50 | L17: Nov
A18: Dec | B18: 150 | F18: 50 | L18: Dec
L19: Annual | M19: =AVERAGE(M7:M18) ->  | O19: =MAX(O7:O18) -> 0 | P19: =AVERAGE(P7:P18) ->  | Q19: =MAX(Q7:Q18) -> 0
K21: =+A6 -> 2022 | L21: mg/Nm3 | M21: 95%ile 10-min avg maximum | N21: Monthly CO 10-min avg mean | O21: 10-min avg maximum | P21: Monthly daily mean | Q21: Monthly daily maximum
K22: A2 | L22: Jan
L23: Feb
L24: Mar
L25: Apr
L26: May
L27: Jun
L28: Jul
L29: Aug
L30: Sep
L31: Oct
L32: Nov
L33: Dec
L34: Annual | M34: =AVERAGE(M22:M33) ->  | O34: =MAX(O22:O33) -> 0 | P34: =AVERAGE(P22:P33) ->  | Q34: =MAX(Q22:Q33) -> 0
K36: =+A6 -> 2022 | L36: mg/Nm3 | M36: 95%ile 10-min avg maximum | N36: Monthly CO 10-min avg mean | O36: 10-min avg maximum | P36: Monthly daily mean | Q36: Monthly daily maximum
K37: A3 | L37: Jan
L38: Feb
L39: Mar
L40: Apr
L41: May
L42: Jun
L43: Jul
L44: Aug
L45: Sep
L46: Oct
L47: Nov
A48: Comments : | L48: Dec
A49: Environment Agency explanatory note: The 10-minute average ELV is based on the “95th percentile”. In this case this means that 95% of the 10 minute averages in the relevant 24-hour period (i.e. 137) must be below 150 mg/Nm3, and 5% (i.e. 7) are allowed to be any value above 150 mg/Nm3. Whilst we expect operators to minimise CO emissions at all times, it is perfectly acceptable for the value of the maximum 10-minute average to be above 150 mg/Nm3, provided the 95th percentile ELV has been met for that period. | L49: Annual | M49: =AVERAGE(M37:M48) ->  | O49: =MAX(O37:O48) -> 0 | P49: =AVERAGE(P37:P48) ->  | Q49: =MAX(Q37:Q48) -> 0
K51: =+A6 -> 2022 | L51: mg/Nm3 | M51: 95%ile 10-min avg maximum | N51: Monthly CO 10-min avg mean | O51: 10-min avg maximum | P51: Monthly daily mean | Q51: Monthly daily maximum
K52: A4 | L52: Jan
L53: Feb
L54: Mar
L55: Apr
L56: May
L57: Jun
L58: Jul
L59: Aug
L60: Sep
L61: Oct
L62: Nov
L63: Dec
L64: Annual | M64: =AVERAGE(M52:M63) ->  | O64: =MAX(O52:O63) -> 0 | P64: =AVERAGE(P52:P63) ->  | Q64: =MAX(Q52:Q63) -> 0
K66: =+A6 -> 2022 | L66: mg/Nm3 | M66: 95%ile 10-min avg maximum | N66: Monthly CO 10-min avg mean | O66: 10-min avg maximum | P66: Monthly daily mean | Q66: Monthly daily maximum
K67: A5 | L67: Jan
L68: Feb
L69: Mar
L70: Apr
L71: May
L72: Jun
L73: Jul
L74: Aug
L75: Sep
L76: Oct
L77: Nov
L78: Dec
L79: Annual | M79: =AVERAGE(M67:M78) ->  | O79: =MAX(O67:O78) -> 0 | P79: =AVERAGE(P67:P78) ->  | Q79: =MAX(Q67:Q78) -> 0

Sheet NH3
A1: =+'Cover Page'!$B$29 -> Annual Performance Report 2022 | E1: =+'Cover Page'!$B$33 -> Javelin Park Energy Recovery Facility
A3: Monitoring of Ammnonia emissions | D3: Whole Installation | G3: See Notes in Cell Q3 | J3: =+A3 -> Monitoring of Ammnonia emissions | N3: Per Combustion Line | Q3: Notes:
Q4: User to add logic to complete Whole installation, Table A5:G18. From the data in Per Combustion Line, Table J6:O79, subject to No. of lines installed
A5: mg/Nm3 | B5: 1/2 Hourly Reference Periods | E5: Daily Reference Periods
A6: =+'Cover Page'!C39 -> 2022 | B6: 1/2 hourly NH3 ELV | C6: Monthly 1/2 hourly mean | D6: Highest 1/2 hourly maximum | E6: Daily NH3 ELV | F6: Monthly daily mean | G6: Highest daily maximum | J6: =+A6 -> 2022 | K6: mg/Nm3 | L6: Monthly 1/2 hourly mean | M6: Monthly 1/2 hourly maximum | N6: Monthly daily mean | O6: Monthly daily maximum
A7: Jan | B7: 0 | C7: 1 | D7: 4 | E7: 10 | F7: 0.59 | G7: 1 | J7: A1 | K7: Jan | L7: 1 | M7: 4 | N7: 0.59 | O7: 1
A8: Feb | B8: =+B7 -> 0 | C8: 1 | D8: 4 | E8: =+E7 -> 10 | F8: 0.9703703704 | G8: 1 | K8: Feb | L8: 1 | M8: 4 | N8: 0.9703703704 | O8: 1
A9: Mar | B9: =+B8 -> 0 | C9: 1 | D9: 3 | E9: =+E8 -> 10 | F9: 1.046153846 | G9: 2 | K9: Mar | L9: 1 | M9: 3 | N9: 1.046153846 | O9: 2 | Q9: Whole Installation table A5:G18:
A10: Apr | B10: 0 | C10: 1 | D10: 3 | E10: 10 | F10: 0.989 | G10: 1 | K10: Apr | L10: 1 | M10: 3 | N10: 0.989 | O10: 1 | Q10: Mean: for 1/2 hourly and daily periods calculate mean of values across all operational combustion lines for the month
A11: May | B11: 0 | C11: 1 | D11: 3 | E11: 10 | F11: 0.8803225806 | G11: 1 | K11: May | L11: 1 | M11: 3 | N11: 0.8803225806 | O11: 1
A12: Jun | B12: 0 | C12: 1 | D12: 5 | E12: 10 | F12: 0.6240740741 | G12: 1 | K12: Jun | L12: 1 | M12: 5 | N12: 0.6240740741 | O12: 1
A13: Jul | B13: 0 | C13: 1 | D13: 1 | E13: 10 | F13: 0.584516129 | G13: 1 | K13: Jul | L13: 1 | M13: 1 | N13: 0.584516129 | O13: 1 | Q13: Maximum: for 1/2 hourly and daily periods use the highest value across all operational combustion lines for the month
A14: Aug | B14: 0 | C14: 2 | D14: 11 | E14: 10 | F14: 1.226428571 | G14: 5 | K14: Aug | L14: 2 | M14: 11 | N14: 1.226428571 | O14: 5
A15: Sep | B15: 0 | C15: 1 | D15: 8 | E15: 10 | F15: 0.9373333333 | G15: 4 | K15: Sep | L15: 1 | M15: 8 | N15: 0.9373333333 | O15: 4
A16: Oct | B16: 0 | C16: 1 | D16: 2 | E16: 10 | F16: 0.529 | G16: 1 | K16: Oct | L16: 1 | M16: 2 | N16: 0.529 | O16: 1
A17: Nov | B17: 0 | C17: 1 | D17: 3 | E17: 10 | F17: 0.7446666667 | G17: 1 | K17: Nov | L17: 1 | M17: 3 | N17: 0.7446666667 | O17: 1
A18: Dec | B18: 0 | C18: 1 | D18: 5 | E18: 10 | F18: 1.251034483 | G18: 2 | K18: Dec | L18: 1 | M18: 5 | N18: 1.251034483 | O18: 2
K19: Annual | L19: =AVERAGE(L7:L18) -> 1.083333333 | M19: =MAX(M7:M18) -> 11 | N19: =AVERAGE(N7:N18) -> 0.8644083379 | O19: =MAX(O7:O18) -> 5
J21: =+A6 -> 2022 | K21: mg/Nm3 | L21: Monthly 1/2 hourly mean | M21: Monthly 1/2 hourly maximum | N21: Monthly daily mean | O21: Monthly daily maximum
J22: A2 | K22: Jan
K23: Feb
K24: Mar
K25: Apr
K26: May
K27: Jun
K28: Jul
K29: Aug
K30: Sep
K31: Oct
K32: Nov
K33: Dec
K34: Annual | L34: =AVERAGE(L22:L33) ->  | M34: =MAX(M22:M33) -> 0 | N34: =AVERAGE(N22:N33) ->  | O34: =MAX(O22:O33) -> 0
J36: =+A6 -> 2022 | K36: mg/Nm3 | L36: Monthly 1/2 hourly mean | M36: Monthly 1/2 hourly maximum | N36: Monthly daily mean | O36: Monthly daily maximum
J37: A3 | K37: Jan
K38: Feb
K39: Mar
K40: Apr
K41: May
K42: Jun
K43: Jul
K44: Aug
K45: Sep
K46: Oct
K47: Nov
A48: Comments : | K48: Dec
A49: An indicated ELV value of zero in the table above means that no ammonia limit is set in the permit. | K49: Annual | L49: =AVERAGE(L37:L48) ->  | M49: =MAX(M37:M48) -> 0 | N49: =AVERAGE(N37:N48) ->  | O49: =MAX(O37:O48) -> 0
J51: =+A6 -> 2022 | K51: mg/Nm3 | L51: Monthly 1/2 hourly mean | M51: Monthly 1/2 hourly maximum | N51: Monthly daily mean | O51: Monthly daily maximum
J52: A4 | K52: Jan
K53: Feb
K54: Mar
K55: Apr
K56: May
K57: Jun
K58: Jul
K59: Aug
K60: Sep
K61: Oct
K62: Nov
K63: Dec
K64: Annual | L64: =AVERAGE(L52:L63) ->  | M64: =MAX(M52:M63) -> 0 | N64: =AVERAGE(N52:N63) ->  | O64: =MAX(O52:O63) -> 0
J66: =+A6 -> 2022 | K66: mg/Nm3 | L66: Monthly 1/2 hourly mean | M66: Monthly 1/2 hourly maximum | N66: Monthly daily mean | O66: Monthly daily maximum
J67: A5 | K67: Jan
K68: Feb
K69: Mar
K70: Apr
K71: May
K72: Jun
K73: Jul
K74: Aug
K75: Sep
K76: Oct
K77: Nov
K78: Dec
K79: Annual | L79: =AVERAGE(L67:L78) ->  | M79: =MAX(M67:M78) -> 0 | N79: =AVERAGE(N67:N78) ->  | O79: =MAX(O67:O78) -> 0
